bitfinex-derivatives/quotes_SOLF0:USTF0_20251126
["timestamp","ask_amount","ask_price","bid_price","bid_amount"]
[1764159173861,2.31769096,136.02,136.0,0.05254344]
[1764159174654,0.04769096,136.02,136.0,2.93254344]
[1764159174861,2.27,136.09,136.02,2.88]
[1764159175060,5.37539837,136.08,136.02,2.88]
[1764159175264,2.27,136.09,136.02,2.88]
[1764159175465,7.69667842,136.08,136.02,2.88]
[1764159175766,2.32,136.08,136.02,2.88]
[1764159175964,2.36854161,136.06,136.04,0.05279914]
[1764159176166,2.37579981,136.06,136.04,0.05279914]
[1764159176364,0.05579981,136.06,136.04,0.05279914]
[1764159177165,0.05579981,136.06,136.04,2.93279914]
[1764159180068,0.05579981,136.06,136.04,5.5926639]
[1764159180274,5.38881408,136.1,136.05,2.88]
[1764159180572,2.32,136.12,136.05,2.88]
[1764159180768,7.70834887,136.11,136.05,2.88]
[1764159180973,2.32,136.11,136.05,2.88]
[1764159181274,2.37104485,136.09,136.07,0.05136377]
[1764159183365,0.05104485,136.09,136.07,2.93136377]
[1764159184471,2.38104485,136.09,136.07,0.05136377]
[1764159186175,2.33,136.08,136.01,2.99]
[1764159186372,4.98986476,136.06,136.01,2.99]
[1764159187274,0.0478352,136.05,136.02,3.04271729]
[1764159187481,0.0478352,136.05,136.03,2.99]
[1764159189174,5.4179197,136.09,136.03,2.99]
[1764159189379,17.00249302,136.12,136.03,2.99]
[1764159189578,10.63242285,136.11,136.03,2.99]
[1764159189776,5.4216345,136.1,136.03,2.99]
[1764159189978,11.79170467,136.12,136.03,2.99]
[1764159189979,5.4216345,136.09,136.03,2.99]
[1764159190178,0.05181089,136.07,136.06,2.99]
[1764159190378,0.05571788,136.08,136.06,2.99]
[1764159200295,2.42571788,136.08,136.05,0.04877298]
[1764159200679,2.42571788,136.08,136.05,3.05877298]
[1764159200996,0.05571788,136.08,136.05,3.05877298]
[1764159201398,2.42571788,136.08,136.05,3.05877298]
[1764159205792,2.42571788,136.08,136.05,0.04877298]
[1764159205996,2.37,136.06,136.05,0.04877298]
[1764159206493,7.79662649,136.06,136.05,0.04877298]
[1764159208199,2.42571788,136.08,136.05,0.04877298]
[1764159208399,5.42722269,136.07,136.05,0.04877298]
[1764159208594,2.42571788,136.08,136.05,0.04877298]
[1764159208794,5.42757507,136.07,136.05,0.04877298]
[1764159208988,0.05571788,136.08,136.05,3.05877298]
[1764159209298,5.42788266,136.07,136.05,3.05877298]
[1764159209490,0.05571788,136.08,136.05,3.05877298]
[1764159209691,5.42846968,136.07,136.05,3.05877298]
[1764159209891,0.05571788,136.08,136.05,3.05877298]
[1764159210092,5.42847161,136.07,136.05,3.05877298]
[1764159210289,2.42571788,136.08,136.05,0.04877298]
[1764159210489,2.37,136.06,136.05,0.04877298]
[1764159210701,7.79879828,136.06,136.05,0.04877298]
[1764159218404,5.42879828,136.06,136.05,3.05877298]
[1764159218594,0.05571788,136.08,136.05,3.05877298]
[1764159218797,5.45235979,136.07,136.05,3.05877298]
[1764159218996,0.05571788,136.08,136.05,3.05877298]
[1764159219307,5.45236166,136.07,136.05,3.05877298]
[1764159219605,0.05571788,136.08,136.05,3.05877298]
[1764159219790,5.45523069,136.07,136.05,3.05877298]
[1764159219994,0.05571788,136.08,136.05,3.05877298]
[1764159220191,5.45425463,136.07,136.05,3.05877298]
[1764159220392,2.42571788,136.08,136.05,3.05877298]
[1764159220594,5.45444783,136.07,136.05,3.05877298]
[1764159220808,2.42571788,136.08,136.05,3.05877298]
[1764159221007,2.37,136.06,136.05,0.04877298]
[1764159221209,7.82444783,136.06,136.05,0.04877298]
[1764159222209,13.01344001,136.06,136.05,0.04877298]
[1764159223004,2.37,136.05,135.97,3.18]
[1764159223207,2.32,136.03,135.97,3.18]
[1764159223507,2.32,136.01,135.95,5.22695586]
[1764159223710,7.76940788,136.0,135.96,3.18]
[1764159223899,0.05198877,135.99,135.97,0.04679618]
[1764159224100,0.05198877,135.99,135.97,3.22679618]
[1764159225196,2.37198877,135.99,135.97,0.04679618]
[1764159225808,0.05198877,135.99,135.97,0.04679618]
[1764159226510,0.05198877,135.99,135.97,3.22679618]
[1764159232003,2.32,136.05,135.98,3.18]
[1764159232207,13.3063702,136.08,135.98,3.18]
[1764159232403,12.97323809,136.07,135.98,3.18]
[1764159232608,5.43254072,136.06,135.98,3.18]
[1764159232908,0.05443124,136.03,136.01,3.22784319]
[1764159241111,10.62591329,136.08,136.01,3.22784319]
[1764159241315,5.4448249,136.07,136.01,3.22784319]
[1764159241518,2.37,136.09,136.01,3.22784319]
[1764159241716,5.44544593,136.08,136.01,3.22784319]
[1764159241918,5.44544593,136.07,136.01,3.22784319]
[1764159242221,6.77792305,136.11,136.01,3.22784319]
[1764159242422,10.62875464,136.1,136.03,3.18]
[1764159242620,5.44623211,136.09,136.03,3.18]
[1764159242823,9.19792305,136.12,136.03,3.18]
[1764159243017,7.9173817,136.11,136.03,3.18]
[1764159243215,5.4473817,136.1,136.03,3.18]
[1764159243419,0.05515504,136.08,136.06,3.18]
[1764159243614,2.52515504,136.08,136.05,3.22758337]
[1764159243922,0.05515504,136.08,136.05,3.22758337]
[1764159245208,2.52515504,136.08,136.05,3.22758337]
[1764159245812,2.52515504,136.08,136.05,0.04758337]
[1764159246622,7.92783149,136.07,136.05,0.04758337]
[1764159246818,2.47,136.06,136.05,0.04758337]
[1764159247023,7.92750185,136.06,136.05,0.04758337]
[1764159249711,2.47,136.05,135.98,3.08]
[1764159249920,2.43,136.03,135.98,3.08]
[1764159250934,7.93435972,136.02,135.99,0.05464111]
[1764159251120,2.47675827,136.02,135.99,0.05464111]
[1764159251625,7.88755774,136.01,135.99,0.05464111]
[1764159251826,2.43,136.01,135.99,0.05464111]
[1764159255926,5.45307584,136.0,135.99,0.05464111]
[1764159256118,7.88307584,136.0,135.99,0.05464111]
[1764159258530,10.54887594,136.0,135.99,0.05464111]
[1764159267340,5.45307584,136.0,135.99,0.05464111]
[1764159267540,2.47675827,136.02,135.99,0.05464111]
[1764159267736,7.87546293,136.01,135.99,0.05464111]
[1764159267942,2.43,136.01,135.99,0.05464111]
[1764159270543,5.0958001,136.01,135.99,0.05464111]
[1764159270743,7.8743616,136.0,135.99,0.05464111]
[1764159273835,2.38,135.99,135.95,2.04695586]
[1764159274035,2.38,135.97,135.95,2.04695586]
[1764159274848,2.43086708,135.97,135.95,2.10302812]
[1764159275236,2.38,135.96,135.95,2.10302812]
[1764159276244,2.38,135.96,135.87,5.6558001]
[1764159276447,0.27,135.92,135.84,2.99]
[1764159277051,22.07,135.96,135.84,2.99]
[1764159277052,0.27,135.9,135.84,2.99]
[1764159277347,0.05297297,135.88,135.86,3.04039739]
[1764159277547,0.05224994,135.88,135.86,3.03800224]
[1764159278153,0.32224994,135.88,135.86,0.04800224]
[1764159278342,0.32224994,135.88,135.8,2.99]
[1764159278551,0.27,135.88,135.8,2.99]
[1764159278754,2.8958001,135.91,135.82,2.99]
[1764159278938,0.23,135.91,135.84,2.99]
[1764159279349,0.05081041,135.89,135.87,2.99]
[1764159279650,0.05400248,135.89,135.87,3.04654565]
[1764159281045,0.28400248,135.89,135.87,0.05654565]
[1764159281357,0.23,135.95,135.89,2.97]
[1764159281552,0.23,135.93,135.86,2.97]
[1764159281752,0.23,135.91,135.82,2.97]
[1764159282251,2.8958001,135.9,135.82,2.97]
[1764159282555,0.28233901,135.88,135.85,0.04960772]
[1764159283450,0.28233901,135.88,135.85,3.01960772]
[1764159283651,0.05233901,135.88,135.85,3.01960772]
[1764159283843,0.05233901,135.88,135.86,2.97]
[1764159284249,0.28233901,135.88,135.85,0.04960772]
[1764159293269,0.23,135.87,135.85,0.04960772]
[1764159300565,0.28233901,135.88,135.85,3.01960772]
[1764159300872,0.28233901,135.88,135.85,0.04960772]
[1764159301264,5.40789508,135.87,135.85,0.04960772]
[1764159301464,0.28233901,135.88,135.85,0.04960772]
[1764159301669,0.28233901,135.88,135.85,3.01960772]
[1764159302068,0.28233901,135.88,135.85,0.04960772]
[1764159302266,0.23,135.86,135.85,0.04960772]
[1764159302459,5.63783022,135.86,135.85,0.04960772]
[1764159303071,0.23,135.87,135.85,0.04960772]
[1764159304475,2.6658001,135.86,135.79,2.97]
[1764159304686,0.23,135.84,135.79,2.97]
[1764159304899,0.23,135.87,135.8,2.97]
[1764159305176,0.22,135.9,135.83,3.14]
[1764159305385,5.74036465,135.89,135.83,3.14]
[1764159305682,0.05434388,135.87,135.85,3.18903962]
[1764159306180,0.27434388,135.87,135.85,0.04903962]
[1764159306383,0.05434388,135.87,135.85,3.18903962]
[1764159306880,0.05434388,135.87,135.86,3.14]
[1764159307076,5.52217058,135.9,135.86,3.14]
[1764159307274,0.22,135.92,135.86,3.14]
[1764159307474,5.52432604,135.91,135.86,3.14]
[1764159307676,5.52432604,135.9,135.86,3.14]
[1764159307872,0.22,135.92,135.86,3.14]
[1764159308081,0.0506282,135.9,135.86,3.14]
[1764159308289,0.3306282,135.9,135.86,3.14]
[1764159309078,0.28,135.88,135.85,0.04903962]
[1764159309883,0.28,135.89,135.85,3.18903962]
[1764159310082,5.80536273,135.88,135.85,3.18903962]
[1764159310290,0.28,135.88,135.85,3.18903962]
[1764159310683,0.28,135.88,135.85,0.04903962]
[1764159312188,5.5313869,135.87,135.85,0.04903962]
[1764159312388,0.28,135.88,135.85,0.04903962]
[1764159312593,0.28,135.86,135.85,0.04903962]
[1764159312793,0.3263746,135.87,135.85,0.04903962]
[1764159313293,5.53475186,135.86,135.85,0.04903962]
[1764159313891,0.3263746,135.87,135.85,0.04903962]
[1764159315192,0.0463746,135.87,135.85,3.11903962]
[1764159316189,5.54615285,135.86,135.85,3.11903962]
[1764159316590,5.82615285,135.86,135.85,0.04903962]
[1764159316891,5.54615285,135.86,135.85,0.04903962]
[1764159317291,5.54615285,135.86,135.85,3.11903962]
[1764159317492,6.77792305,135.91,135.86,3.07]
[1764159317696,7.05792305,135.92,135.86,3.07]
[1764159317893,6.77792305,135.93,135.86,3.07]
[1764159318094,6.77792305,135.94,135.86,3.07]
[1764159318293,5.19974765,135.93,135.86,3.07]
[1764159318598,0.05034421,135.91,135.88,3.12166812]
[1764159319292,6.77792305,135.95,135.89,3.07]
[1764159319497,6.77792305,135.97,135.89,3.07]
[1764159319799,6.77792305,135.98,135.89,3.07]
[1764159320001,5.20335104,135.97,135.89,3.07]
[1764159320299,6.77792305,135.98,135.89,3.07]
[1764159320500,6.77792305,135.98,135.93,3.07]
[1764159321000,3.0,136.01,135.93,3.07]
[1764159321001,6.77792305,136.01,135.93,3.07]
[1764159321203,5.20372135,136.0,135.93,3.07]
[1764159321401,6.77792305,136.01,135.96,3.07]
[1764159321402,0.05013853,135.98,135.96,3.07]
[1764159321999,3.05013853,135.98,135.95,0.05060136]
[1764159322303,0.05013853,135.98,135.95,3.12060136]
[1764159326897,5.18032362,136.03,135.95,3.12060136]
[1764159327098,6.77792305,136.05,135.95,3.12060136]
[1764159327292,8.17679661,136.07,135.95,3.07]
[1764159327901,0.04651918,136.02,136.0,3.12518624]
[1764159328105,0.04918123,136.02,136.0,3.12518624]
[1764159329709,3.04918123,136.02,136.0,0.05518624]
[1764159330103,3.04918123,136.02,135.97,3.07]
[1764159330411,3.04918123,136.02,135.9,11.04718848]
[1764159330412,3.04918123,136.02,135.94,3.07]
[1764159330613,3.0,136.02,135.94,3.07]
[1764159331108,0.04954594,135.99,135.97,3.12061849]
[1764159331509,0.04954594,135.99,135.97,0.05061849]
[1764159331907,0.04954594,135.99,135.97,3.12061849]
[1764159332509,0.04954594,135.99,135.97,0.05061849]
[1764159333516,0.04954594,135.99,135.97,3.12061849]
[1764159347618,2.96954594,135.99,135.97,0.05061849]
[1764159349425,4.44954594,135.99,135.97,0.05061849]
[1764159349625,2.92,135.98,135.97,0.05061849]
[1764159351024,0.04954594,135.99,135.97,3.03061849]
[1764159351228,0.04954594,135.99,135.97,0.05061849]
[1764159351618,0.04954594,135.99,135.97,3.03061849]
[1764159352120,2.96954594,135.99,135.97,0.05061849]
[1764159352524,2.92,135.97,135.88,2.98]
[1764159352828,6.89354827,135.98,135.88,2.98]
[1764159352829,5.41354827,135.96,135.88,2.98]
[1764159353031,2.92,135.98,135.88,2.98]
[1764159353237,5.41353787,135.97,135.88,2.98]
[1764159353534,0.04787247,135.94,135.92,2.98]
[1764159353726,2.96767293,135.94,135.92,0.04682039]
[1764159354433,7.0862398,135.93,135.92,0.04682039]
[1764159355324,12.50317827,135.93,135.92,0.04682039]
[1764159355524,13.98317827,135.93,135.92,0.04682039]
[1764159356337,2.92,135.92,135.85,2.98]
[1764159356525,2.92,135.9,135.85,2.98]
[1764159357223,2.92,135.9,135.81,2.98]
[1764159357430,2.97194588,135.87,135.84,0.05220489]
[1764159359338,2.92,135.85,135.84,0.05220489]
[1764159360030,2.97194588,135.87,135.84,0.05220489]
[1764159360232,8.33844357,135.86,135.84,0.05220489]
[1764159360428,0.05194588,135.87,135.84,3.03220489]
[1764159360633,2.97194588,135.87,135.84,0.05220489]
[1764159360835,2.97194588,135.87,135.84,3.03220489]
[1764159361433,0.05194588,135.87,135.84,3.03220489]
[1764159362236,2.97194588,135.87,135.84,0.05220489]
[1764159368643,2.98,135.85,135.78,3.0]
[1764159368843,2.98,135.84,135.78,3.0]
[1764159369036,2.98,135.84,135.75,3.0]
[1764159369539,0.05513392,135.81,135.78,0.05458232]
[1764159369744,3.03513392,135.81,135.78,0.05458232]
[1764159370945,3.03513392,135.81,135.67,3.35371842]
[1764159371250,2.91,135.79,135.68,2.97]
[1764159371748,5.40093951,135.81,135.68,2.97]
[1764159371749,2.91,135.81,135.68,2.97]
[1764159372250,0.05291455,135.76,135.74,2.97]
[1764159372439,8.31093951,135.84,135.74,3.02504952]
[1764159372639,2.91,135.84,135.75,2.97]
[1764159373646,0.0537557,135.81,135.78,3.01822554]
[1764159375549,2.9637557,135.81,135.78,0.04822554]
[1764159376753,0.0537557,135.81,135.78,3.01822554]
[1764159377434,2.9637557,135.81,135.78,3.01822554]
[1764159377640,2.9637557,135.81,135.78,0.04822554]
[1764159377836,0.0537557,135.81,135.78,3.01822554]
[1764159378248,2.9637557,135.81,135.78,0.04822554]
[1764159382051,0.0537557,135.81,135.78,3.01822554]
[1764159383453,2.9637557,135.81,135.78,0.04822554]
[1764159383839,2.9637557,135.81,135.78,3.01822554]
[1764159384044,0.0537557,135.81,135.78,3.01822554]
[1764159384758,2.9637557,135.81,135.78,0.04822554]
[1764159385352,2.9637557,135.81,135.78,3.01822554]
[1764159386060,2.9637557,135.81,135.78,0.04822554]
[1764159391253,2.91,135.79,135.78,0.04822554]
[1764159392364,8.30849824,135.79,135.78,0.04822554]
[1764159393154,5.39849824,135.79,135.78,0.04822554]
[1764159393463,8.30849824,135.79,135.78,0.04822554]
[1764159393858,5.39849824,135.79,135.78,0.04822554]
[1764159394162,8.30849824,135.79,135.78,0.04822554]
[1764159394560,2.91,135.78,135.71,2.97]
[1764159394862,8.30849824,135.77,135.71,2.97]
[1764159395061,8.30849824,135.76,135.71,2.97]
[1764159395259,2.91,135.76,135.71,2.97]
[1764159395458,0.05532243,135.75,135.73,2.97]
[1764159396456,0.05532243,135.75,135.72,3.02206505]
[1764159397553,5.43838527,135.74,135.72,3.02206505]
[1764159397758,0.05532243,135.75,135.72,3.02206505]
[1764159398464,5.44369198,135.74,135.72,3.02206505]
[1764159398653,5.44369198,135.73,135.72,3.02206505]
[1764159398854,0.05532243,135.75,135.72,3.02206505]
[1764159399058,5.44396016,135.74,135.72,3.02206505]
[1764159399369,5.44414132,135.73,135.72,3.02206505]
[1764159399771,0.05532243,135.75,135.72,4.50206505]
[1764159399962,0.05532243,135.75,135.72,3.02206505]
[1764159403274,0.05532243,135.75,135.74,3.17]
[1764159404964,9.70792305,135.81,135.74,3.17]
[1764159405273,6.77792305,135.82,135.74,3.17]
[1764159405461,9.70792305,135.84,135.74,3.17]
[1764159405664,6.77792305,135.84,135.74,3.17]
[1764159405968,0.05180837,135.8,135.78,0.05357089]
[1764159406166,0.05180837,135.8,135.79,3.17]
[1764159407167,2.93,135.86,135.8,3.17]
[1764159407672,6.77792305,135.88,135.8,3.17]
[1764159408071,9.70792305,135.88,135.83,0.05458949]
[1764159408373,0.05082912,135.85,135.83,3.22458949]
[1764159408976,2.98082912,135.85,135.83,0.05458949]
[1764159409570,0.05082912,135.85,135.83,3.22458949]
[1764159415179,11.31,135.92,135.83,3.22458949]
[1764159415380,5.4270237,135.91,135.83,3.17]
[1764159415680,11.31,135.92,135.83,3.17]
[1764159415881,5.42729508,135.91,135.83,3.17]
[1764159416187,0.05091431,135.88,135.87,3.17]
[1764159416379,0.051641,135.89,135.87,3.17]
[1764159416883,2.93,135.95,135.87,3.17]
[1764159417984,0.0476063,135.92,135.9,3.21816183]
[1764159418279,2.9776063,135.92,135.9,0.04826038]
[1764159418681,0.0476063,135.92,135.9,0.04826038]
[1764159420679,0.0476063,135.92,135.9,3.21826038]
[1764159424181,2.9776063,135.92,135.9,0.04826038]
[1764159424777,0.0476063,135.92,135.9,0.04826038]
[1764159424978,0.0476063,135.92,135.9,3.21826038]
[1764159426788,2.97,135.98,135.91,2.98]
[1764159426985,2.66841738,136.0,135.93,2.98]
[1764159427286,2.97,136.01,135.95,2.98]
[1764159427888,0.04839431,135.99,135.97,3.03035075]
[1764159428082,0.04839431,135.99,135.97,0.05035075]
[1764159428283,0.04839431,135.99,135.97,3.03035075]
[1764159428884,0.04839431,135.99,135.97,0.05035075]
[1764159429089,3.01839431,135.99,135.97,0.05035075]
[1764159429796,2.97,135.98,135.91,2.98]
[1764159430782,3.01629752,135.96,135.93,0.04737984]
[1764159431186,0.04629752,135.96,135.93,2.99737984]
[1764159432988,3.14629752,135.96,135.93,2.99737984]
[1764159433394,3.14629752,135.96,135.93,0.04737984]
[1764159438896,0.04629752,135.96,135.93,2.99737984]
[1764159439699,3.1,136.02,135.94,2.95]
[1764159440093,3.1,136.01,135.94,2.95]
[1764159440693,3.1,135.98,135.96,0.05048717]
[1764159441705,3.14905967,135.99,135.96,0.05048717]
[1764159441899,3.14905967,135.99,135.96,3.00048717]
[1764159442098,3.14905967,135.99,135.96,0.05048717]
[1764159442898,0.04905967,135.99,135.96,3.00048717]
[1764159445396,3.14905967,135.99,135.96,0.05048717]
[1764159448799,3.1,135.96,135.9,2.95]
[1764159450007,0.05255816,135.94,135.92,3.00446793]
[1764159450209,0.05255816,135.94,135.92,2.99955038]
[1764159450610,0.05255816,135.94,135.92,0.04955038]
[1764159451104,0.05255816,135.94,135.92,2.99955038]
[1764159458112,3.15255816,135.94,135.92,0.04955038]
[1764159458304,5.41853805,135.93,135.92,0.04955038]
[1764159458503,8.51853805,135.93,135.92,0.04955038]
[1764159460014,5.41853805,135.93,135.92,0.04955038]
[1764159460212,0.05255816,135.94,135.92,2.99955038]
[1764159462315,6.70294786,135.99,135.92,2.99955038]
[1764159462512,10.51703186,135.98,135.92,2.99955038]
[1764159462706,5.42593117,135.97,135.92,2.99955038]
[1764159462910,5.09127064,135.99,135.92,2.99955038]
[1764159463221,3.08,135.97,135.92,2.99955038]
[1764159463414,5.48209636,135.96,135.92,2.99955038]
[1764159463720,0.05473656,135.96,135.92,2.99955038]
[1764159465820,5.43119558,136.01,135.92,2.99955038]
[1764159466116,3.08,136.03,135.92,2.95]
[1764159466423,5.43046369,136.02,135.92,2.95]
[1764159466717,5.43046369,136.01,135.92,2.95]
[1764159466911,0.02223868,135.98,135.97,3.0]
[1764159467120,9.78294786,136.06,135.97,3.0]
[1764159467313,10.52594027,136.05,135.97,3.0]
[1764159467513,5.43163906,136.04,135.97,3.0]
[1764159467725,5.43163906,136.03,135.97,3.0]
[1764159467923,5.09418224,136.05,135.97,3.0]
[1764159468223,3.08,136.03,136.0,0.05279691]
[1764159469321,3.08,136.05,136.0,0.05279691]
[1764159469524,3.08,136.03,136.0,0.05279691]
[1764159472118,3.08,136.01,136.0,0.05279691]
[1764159472426,3.08,136.03,136.0,0.05279691]
[1764159475926,3.08,136.01,136.0,0.05279691]
[1764159476317,3.08,136.01,135.94,3.0]
[1764159477315,0.04662037,135.99,135.96,0.05422399]
[1764159478214,3.12662037,135.99,135.96,0.05422399]
[1764159481331,3.08,135.97,135.96,0.05422399]
[1764159482725,3.12662037,135.99,135.96,0.05422399]
[1764159482924,3.12662037,135.99,135.96,3.05422399]
[1764159483324,3.12662037,135.99,135.96,0.05422399]
[1764159484431,3.12662037,135.99,135.96,3.05422399]
[1764159484432,0.04662037,135.99,135.96,3.05422399]
[1764159489039,3.13,136.06,135.96,3.05422399]
[1764159489339,8.56304041,136.05,135.96,3.0]
[1764159489533,3.13,136.05,135.96,3.0]
[1764159489934,3.13,136.05,135.99,0.04798616]
[1764159490134,3.13,136.03,135.99,0.04798616]
[1764159490337,3.13,136.03,136.0,0.0495492]
[1764159498541,3.12,136.0,135.93,3.08]
[1764159498838,3.12,135.98,135.88,3.08]
[1764159499548,3.1698029,135.94,135.92,0.05516637]
[1764159506152,0.0498029,135.94,135.92,3.13516637]
[1764159506350,0.0498029,135.94,135.92,0.05516637]
[1764159507248,0.0498029,135.94,135.92,3.13516637]
[1764159511650,3.12,136.0,135.92,3.13516637]
[1764159511850,3.12,136.0,135.92,3.08]
[1764159512651,3.12,136.0,135.96,3.08]
[1764159515659,3.12,136.03,135.96,3.08]
[1764159515961,3.12,136.01,135.98,0.05233327]
[1764159518050,3.12,135.99,135.98,0.05233327]
[1764159522660,3.01,136.01,135.98,0.05233327]
[1764159523164,3.01,136.01,135.98,3.21233327]
[1764159523860,3.01,136.01,135.98,0.05233327]
[1764159524752,3.01,136.0,135.98,0.05233327]
[1764159526265,3.01,135.99,135.98,0.05233327]
[1764159529065,3.01,135.98,135.9,3.16]
[1764159529458,3.01,135.96,135.9,3.16]
[1764159529962,0.05374746,135.94,135.92,0.05538607]
[1764159530563,0.05374746,135.94,135.92,3.21538607]
[1764159534569,5.67498562,135.93,135.92,0.05538607]
[1764159534975,5.67498562,135.93,135.86,3.16]
[1764159534976,3.01,135.92,135.86,3.16]
[1764159535366,3.01,135.9,135.86,3.16]
[1764159535671,3.01,135.9,135.82,2.66498562]
[1764159535672,3.01,135.9,135.83,3.16]
[1764159536171,0.05546577,135.88,135.85,3.21610244]
[1764159536876,3.06546577,135.88,135.85,3.21610244]
[1764159537972,3.06546577,135.88,135.85,0.05610244]
[1764159538276,3.06546577,135.88,135.85,3.21610244]
[1764159539271,0.05546577,135.88,135.85,3.21610244]
[1764159540178,0.05546577,135.88,135.85,5.88108806]
[1764159540363,0.05546577,135.88,135.86,3.16]
[1764159540563,3.06546577,135.88,135.85,3.21610244]
[1764159540773,0.05546577,135.88,135.85,3.21610244]
[1764159542675,3.06546577,135.88,135.85,0.05610244]
[1764159543779,3.01,135.87,135.85,0.05610244]
[1764159544385,0.05546577,135.88,135.85,3.21610244]
[1764159548585,2.97546577,135.88,135.85,3.21610244]
[1764159548783,2.97546577,135.88,135.85,0.05610244]
[1764159556395,3.0,135.87,135.79,2.88]
[1764159556686,3.0,135.85,135.79,2.88]
[1764159557494,0.04763287,135.83,135.81,0.05016984]
[1764159557987,3.04763287,135.83,135.81,0.05016984]
[1764159558195,0.04763287,135.83,135.81,0.05016984]
[1764159558389,3.04763287,135.83,135.81,0.05016984]
[1764159560983,5.71261849,135.83,135.81,0.05016984]
[1764159561189,5.71261849,135.83,135.73,5.54498562]
[1764159561190,3.0,135.82,135.73,5.54498562]
[1764159561387,3.0,135.8,135.73,2.88]
[1764159561893,3.0,135.78,135.73,2.88]
[1764159562093,3.0,135.78,135.7,2.88]
[1764159562296,3.04734958,135.75,135.73,0.05318187]
[1764159563890,3.0,135.74,135.67,2.07190325]
[1764159564088,3.0,135.73,135.67,2.07190325]
[1764159564910,3.05138193,135.71,135.69,0.05068035]
[1764159565108,3.0530587,135.71,135.69,0.05068035]
[1764159566102,3.0530587,135.71,135.67,2.07190325]
[1764159567007,3.0530587,135.71,135.68,0.05630033]
[1764159571420,0.0530587,135.71,135.68,2.93630033]
[1764159572217,3.0530587,135.71,135.68,0.05630033]
[1764159574514,0.0530587,135.71,135.68,2.93630033]
[1764159579720,3.0530587,135.71,135.68,0.05630033]
[1764159584834,3.0530587,135.71,135.68,2.94630033]
[1764159585426,0.0530587,135.71,135.68,2.94630033]
[1764159587134,3.0230587,135.71,135.68,0.05630033]
[1764159587931,0.0530587,135.71,135.68,2.94630033]
[1764159592236,2.97,135.7,135.68,0.05630033]
[1764159593236,3.0230587,135.71,135.68,0.05630033]
[1764159593839,0.0530587,135.71,135.68,2.94630033]
[1764159602127,3.0230587,135.71,135.68,0.05630033]
[1764159602836,2.97,135.69,135.68,0.05630033]
[1764159604535,5.45741037,135.69,135.68,2.94630033]
[1764159604739,0.0530587,135.71,135.68,2.94630033]
[1764159605335,2.9530587,135.71,135.68,2.94630033]
[1764159605547,8.36086576,135.7,135.68,0.05630033]
[1764159605834,5.46086576,135.69,135.68,0.05630033]
[1764159607441,8.36086576,135.69,135.68,0.05630033]
[1764159607836,5.46086576,135.69,135.68,0.05630033]
[1764159610040,8.36086576,135.69,135.68,0.05630033]
[1764159612940,13.59552778,135.69,135.68,0.05630033]
[1764159613438,8.36086576,135.69,135.68,0.05630033]
[1764159613846,13.59524146,135.69,135.68,0.05630033]
[1764159614746,13.59540891,135.69,135.68,0.05630033]
[1764159615544,13.59540891,135.69,135.67,2.07190325]
[1764159615738,8.45086576,135.68,135.67,2.07190325]
[1764159616246,13.68443632,135.68,135.67,0.00190325]
[1764159616550,8.45086576,135.68,135.67,0.00190325]
[1764159617447,2.99,135.67,135.6,2.96]
[1764159617650,8.45086576,135.66,135.6,2.96]
[1764159617834,2.99,135.66,135.6,2.96]
[1764159618232,0.05158395,135.64,135.62,0.04737698]
[1764159618431,3.04158395,135.64,135.62,0.04737698]
[1764159619452,0.05158395,135.64,135.62,3.00737698]
[1764159619747,0.05158395,135.64,135.62,0.04737698]
[1764159619954,3.04158395,135.64,135.62,0.04737698]
[1764159620851,0.05158395,135.64,135.62,3.00737698]
[1764159622549,0.05158395,135.64,135.62,0.04737698]
[1764159622740,0.05158395,135.64,135.62,3.00737698]
[1764159625551,2.99,135.7,135.63,2.6775654]
[1764159625752,2.99,135.7,135.64,2.96]
[1764159626456,0.05522266,135.68,135.66,3.01382648]
[1764159626853,0.05522266,135.68,135.66,0.05382648]
[1764159628952,0.05522266,135.68,135.66,3.01382648]
[1764159632056,0.05522266,135.68,135.67,2.96]
[1764159633750,5.4576671,135.73,135.67,2.96]
[1764159633949,2.99,135.74,135.67,2.96]
[1764159634146,5.4576861,135.73,135.69,2.96]
[1764159634358,2.99,135.74,135.69,2.96]